bitfinex/quotes_BTCUSD_20240831
["timestamp","ask_amount","ask_price","bid_price","bid_amount"]
[1725112402920,0.19707422,59251.0,59250.0,0.15600328]
[1725112403136,0.02830122,59251.0,59250.0,0.15600328]
[1725112404439,0.19707422,59251.0,59250.0,0.15600328]
[1725112404874,0.337534,59254.0,59250.0,0.15600328]
[1725112405142,0.168773,59251.0,59250.0,0.18848171]
[1725112405344,0.19525466,59251.0,59250.0,0.18848171]
[1725112405767,0.19525466,59251.0,59250.0,0.15600328]
[1725112405979,0.19525466,59251.0,59250.0,0.15000328]
[1725112406193,0.19525466,59251.0,59250.0,0.15200328]
[1725112406608,0.53280166,59251.0,59250.0,0.15000328]
[1725112407235,0.53280166,59251.0,59250.0,0.15600328]
[1725112407959,0.87034866,59251.0,59250.0,0.09140328]
[1725112408185,1.20789566,59251.0,59250.0,0.006]
[1725112408401,1.181414,59251.0,59250.0,0.006]
[1725112411729,1.281414,59251.0,59250.0,0.006]
[1725112411950,1.34055824,59251.0,59250.0,0.006]
[1725112412163,1.281414,59251.0,59250.0,0.006]
[1725112412599,1.181512,59246.0,59245.0,0.000902]
[1725112413090,1.181512,59246.0,59245.0,0.00500741]
[1725112413305,1.181512,59246.0,59245.0,0.000902]
[1725112413541,1.181512,59246.0,59245.0,0.00500741]
[1725112413764,1.181512,59246.0,59245.0,0.000902]
[1725112413985,1.181512,59246.0,59245.0,0.01100741]
[1725112414207,1.181512,59246.0,59245.0,0.006902]
[1725112415123,1.281512,59246.0,59245.0,0.006902]
[1725112415328,1.348012,59246.0,59245.0,0.006902]
[1725112416190,1.685587,59246.0,59245.0,0.006902]
[1725112417247,1.685587,59246.0,59245.0,0.000902]
[1725112417459,1.694587,59246.0,59245.0,0.001902]
[1725112418751,1.71167002,59246.0,59245.0,0.001902]
[1725112419231,1.70267002,59246.0,59245.0,0.000902]
[1725112419478,1.71367002,59246.0,59245.0,0.001902]
[1725112419948,1.7291552,59246.0,59245.0,0.000902]
[1725112420166,1.7291552,59246.0,59245.0,0.001902]
[1725112420396,1.7381552,59246.0,59245.0,0.001902]
[1725112420857,1.7291552,59246.0,59245.0,0.000902]
[1725112421704,1.7401552,59246.0,59245.0,0.001902]
[1725112422170,1.90870684,59246.0,59245.0,0.001902]
[1725112422386,1.98990684,59246.0,59245.0,0.001902]
[1725112423063,1.97890684,59246.0,59245.0,0.000902]
[1725112423310,1.97890684,59246.0,59245.0,0.001902]
[1725112423523,2.32748184,59246.0,59245.0,0.001902]
[1725112425093,2.33248184,59246.0,59245.0,0.001902]
[1725112425799,2.32748184,59246.0,59245.0,0.001902]
[1725112426848,2.30099666,59246.0,59245.0,0.001902]
[1725112428143,6.41282088,59246.0,59245.0,0.001902]
[1725112428402,6.8119715,59246.0,59245.0,1e-06]
[1725112428817,6.75714728,59246.0,59245.0,1e-06]
[1725112429287,6.58859564,59246.0,59245.0,1e-06]
[1725112430193,6.61508553,59246.0,59245.0,1e-06]
[1725112430837,5.62208553,59246.0,59245.0,1e-06]
[1725112431124,5.62208553,59246.0,59245.0,0.0009008]
[1725112432000,5.59908553,59246.0,59245.0,0.0009008]
[1725112432214,5.19751053,59246.0,59245.0,0.0009008]
[1725112432484,2.94493553,59246.0,59245.0,0.0009008]
[1725112435745,5.40493553,59246.0,59245.0,0.0009008]
[1725112436434,5.42258089,59246.0,59245.0,0.0009008]
[1725112436858,5.385091,59246.0,59245.0,0.0009008]
[1725112437541,3.790091,59246.0,59245.0,0.0009008]
[1725112437762,2.75444264,59246.0,59245.0,0.0009008]
[1725112437984,2.71344264,59246.0,59245.0,0.0009008]
[1725112438202,2.52444264,59246.0,59245.0,0.0009008]
[1725112438853,1.66481538,59246.0,59245.0,0.0009008]
[1725112439090,1.49602838,59246.0,59245.0,0.0009008]
[1725112439309,1.66481538,59246.0,59245.0,0.0009008]
[1725112440181,1.69129923,59246.0,59245.0,0.0009008]
[1725112445456,1.81086875,59246.0,59245.0,0.0009008]
[1725112445902,1.74556875,59246.0,59245.0,0.0009008]
[1725112446122,1.69129923,59246.0,59245.0,0.00500621]
[1725112446345,1.69129923,59246.0,59245.0,0.0009008]
[1725112446590,1.69129923,59246.0,59245.0,0.00500621]
[1725112446788,1.69129923,59246.0,59245.0,0.0009008]
[1725112447019,1.66481538,59246.0,59245.0,0.00500621]
[1725112447241,1.66481538,59246.0,59245.0,0.0009008]
[1725112447242,1.83336702,59246.0,59245.0,0.0009008]
[1725112447456,1.83336702,59246.0,59245.0,0.00500621]
[1725112448799,1.66481538,59246.0,59245.0,0.00500621]
[1725112450274,1.69129899,59246.0,59245.0,0.00500621]
[1725112452941,1.74615038,59246.0,59245.0,0.00500621]
[1725112453154,1.74615038,59246.0,59245.0,0.0009008]
[1725112453790,1.69129899,59246.0,59245.0,0.0009008]
[1725112454215,1.85985063,59246.0,59245.0,0.0009008]
[1725112456806,1.83336702,59246.0,59245.0,0.0009008]
[1725112457015,1.83418502,59246.0,59245.0,0.0009008]
[1725112459607,1.66563338,59246.0,59245.0,0.0009008]
[1725112460239,1.69211738,59246.0,59245.0,0.0009008]
[1725112466819,1.66563338,59246.0,59245.0,0.0009008]
[1725112470138,1.69211771,59246.0,59245.0,0.0009008]
[1725112471691,2.09289271,59246.0,59245.0,0.0009008]
[1725112471915,2.26144435,59246.0,59245.0,0.0009008]
[1725112473216,2.28444435,59246.0,59245.0,0.0009008]
[1725112476310,2.28944435,59246.0,59245.0,0.0009008]
[1725112476524,2.34239254,59246.0,59245.0,0.0009008]
[1725112476732,2.46850705,59246.0,59245.0,0.0009008]
[1725112476936,2.31590821,59246.0,59245.0,0.0009008]
[1725112477625,2.26296002,59246.0,59245.0,0.0009008]
[1725112479397,2.36388295,59246.0,59245.0,0.0009008]
[1725112479855,2.26296002,59246.0,59245.0,0.0009008]
[1725112480302,2.2894445,59246.0,59245.0,0.0009008]
[1725112481480,2.41559757,59246.0,59245.0,0.0009008]
[1725112481692,2.2894445,59246.0,59245.0,0.0009008]
[1725112482663,7.3394445,59246.0,59245.0,0.0009008]
[1725112482888,7.51854576,59246.0,59245.0,0.0009008]
[1725112483137,7.85612076,59246.0,59245.0,8e-07]
[1725112483348,2.88352076,59246.0,59245.0,8e-07]
[1725112485921,2.88349575,59246.0,59245.0,8e-07]
[1725112487924,2.75736769,59246.0,59245.0,8e-07]
[1725112488591,2.8834896,59246.0,59245.0,8e-07]
[1725112489094,2.75314141,59246.0,59245.0,8e-07]
[1725112489321,2.58458977,59246.0,59245.0,8e-07]
[1725112489531,2.55810529,59246.0,59245.0,8e-07]
[1725112490167,2.49490529,59246.0,59245.0,8e-07]
[1725112490823,2.46968796,59246.0,59245.0,8e-07]
[1725112491039,2.39526871,59246.0,59245.0,8e-07]
[1725112491260,2.05769371,59246.0,59245.0,8e-07]
[1725112491695,2.03120838,59246.0,59245.0,8e-07]
[1725112493423,1.69363338,59246.0,59245.0,8e-07]
[1725112493853,1.72011853,59246.0,59245.0,8e-07]
[1725112494098,1.88867017,59246.0,59245.0,8e-07]
[1725112496487,2.34209336,59246.0,59245.0,8e-07]
[1725112496971,2.26266002,59246.0,59245.0,8e-07]
[1725112499634,2.36358182,59246.0,59245.0,8e-07]
[1725112500082,2.26266002,59246.0,59245.0,8e-07]
[1725112500311,2.39006775,59246.0,59245.0,8e-07]
[1725112501271,2.28914595,59246.0,59245.0,8e-07]
[1725112502146,2.34209414,59246.0,59245.0,8e-07]
[1725112502371,2.67966914,59246.0,59245.0,8e-07]
[1725112505186,7.30222419,59245.0,59244.0,0.3312058]
[1725112505424,7.46764999,59245.0,59244.0,0.3312058]
[1725112506594,7.47764999,59245.0,59244.0,0.3322058]
[1725112506836,7.60382943,59245.0,59244.0,0.3322058]
[1725112507085,7.60382943,59245.0,59244.0,0.1634108]
[1725112507086,7.66673196,59245.0,59244.0,0.1634108]
[1725112507327,7.54054999,59245.0,59244.0,0.1634108]
[1725112507537,7.66673196,59245.0,59244.0,0.1634108]
[1725112508235,7.66673196,59245.0,59244.0,0.0283748]
[1725112508452,2.344609,59244.0,59243.0,0.4946158]
[1725112508682,2.344609,59244.0,59243.0,0.29275302]
[1725112508683,7.69616064,59244.0,59243.0,0.29275302]
[1725112508890,7.69616064,59244.0,59243.0,0.15771702]
[1725112509323,7.5024892,59244.0,59243.0,0.15771702]
[1725112509565,7.6712822,59244.0,59243.0,0.15771702]
[1725112509782,3.09002629,59244.0,59243.0,0.15771702]
[1725112510004,3.05202629,59244.0,59243.0,0.15771702]
[1725112510218,3.15293363,59244.0,59243.0,0.15771702]
[1725112510432,2.94602629,59244.0,59243.0,0.15871702]
[1725112511060,3.11457793,59244.0,59243.0,0.15871702]
[1725112511190,2.94602629,59244.0,59243.0,0.15871702]
[1725112511614,2.61002629,59244.0,59243.0,0.15771702]
[1725112511827,2.62402629,59244.0,59243.0,0.15771702]
[1725112512286,2.61002629,59244.0,59243.0,0.15771702]
[1725112512755,2.62402629,59244.0,59243.0,0.15771702]
[1725112512979,2.79257793,59244.0,59243.0,0.15771702]
[1725112514868,2.78757793,59244.0,59243.0,0.15771702]
[1725112515092,2.79257793,59244.0,59243.0,0.15771702]
[1725112515537,2.85827793,59244.0,59243.0,0.15771702]
[1725112515753,3.01213346,59244.0,59243.0,0.15771702]
[1725112516399,2.91122612,59244.0,59243.0,0.15771702]
[1725112516631,2.84552612,59244.0,59243.0,0.15771702]
[1725112516854,7.27452612,59244.0,59243.0,0.15771702]
[1725112518442,7.22157793,59244.0,59243.0,0.15771702]
[1725112518899,7.22157793,59244.0,59243.0,0.15861682]
[1725112520070,7.27452612,59244.0,59243.0,0.15861682]
[1725112521733,7.27452612,59244.0,59243.0,0.12485782]
[1725112522418,7.34768735,59244.0,59243.0,0.12485782]
[1725112523271,7.34768313,59244.0,59243.0,0.12485782]
[1725112523477,7.34768538,59244.0,59243.0,0.12485782]
[1725112523899,7.40063357,59244.0,59243.0,0.12485782]
[1725112524103,7.27452612,59244.0,59243.0,0.12485782]
[1725112525191,7.26452612,59244.0,59243.0,0.12485782]
[1725112525412,7.27452612,59244.0,59243.0,0.12485782]
[1725112527137,7.55916393,59244.0,59243.0,8.2e-07]
[1725112527378,0.168804,59240.0,59239.0,0.0509009]
[1725112527614,6.017022,59240.0,59239.0,0.0509009]
[1725112527820,6.45549683,59240.0,59239.0,0.0509009]
[1725112528031,6.47317421,59240.0,59239.0,0.0509009]
[1725112528247,7.14839221,59240.0,59239.0,0.0509009]
[1725112528452,7.21607802,59240.0,59239.0,0.0509009]
[1725112528657,7.21607802,59240.0,59239.0,0.03652252]
[1725112528658,7.22507802,59240.0,59239.0,0.03652252]
[1725112529310,7.32592565,59240.0,59239.0,0.03652252]
[1725112529748,7.22507802,59240.0,59239.0,0.03652252]
[1725112530189,7.3259186,59240.0,59239.0,0.03652252]
[1725112530403,7.42016016,59240.0,59239.0,0.03652252]
[1725112530840,7.38501958,59240.0,59239.0,0.03652252]
[1725112531046,7.48585259,59240.0,59239.0,0.03652252]
[1725112531250,7.42359541,59240.0,59239.0,0.03652252]
[1725112531882,7.42359541,59240.0,59229.0,0.1398]
[1725112531883,1.519447,59232.0,59229.0,0.1398]
[1725112532083,6.692447,59232.0,59229.0,0.1398]
[1725112532492,7.05659242,59232.0,59229.0,0.1398]
[1725112532937,6.71893742,59232.0,59229.0,0.1398]
[1725112533153,1.519497,59230.0,59229.0,0.1352]
[1725112533371,1.81104864,59230.0,59229.0,0.1302]
[1725112535364,1.023118,59223.0,59221.0,0.008998]
[1725112535585,0.516568,59222.0,59221.0,0.00032962]
[1725112535814,6.7221298,59222.0,59221.0,0.00032962]
[1725112536047,7.0828418,59222.0,59221.0,0.00032962]
[1725112536257,6.7451298,59222.0,59221.0,0.00032962]
[1725112536488,6.78370566,59222.0,59221.0,0.00032962]
[1725112537359,6.83665378,59222.0,59221.0,0.00032962]
[1725112537772,7.17436578,59222.0,59221.0,0.00032962]
[1725112537988,1.519933,59213.0,59212.0,0.0818]
[1725112538200,1.619933,59213.0,59212.0,0.0818]
[1725112538411,1.51996,59212.0,59211.0,0.009409]
[1725112538632,1.80996,59212.0,59211.0,0.091209]
[1725112539060,1.83296,59212.0,59211.0,0.091209]
[1725112541454,1.87153587,59212.0,59211.0,0.091209]
[1725112542305,1.87153587,59212.0,59211.0,0.009409]
[1725112542306,2.25980615,59212.0,59211.0,0.009409]
[1725112542525,2.42835779,59212.0,59211.0,0.009409]
[1725112542988,2.48130591,59212.0,59211.0,0.009409]
[1725112544076,2.48427471,59212.0,59211.0,0.009409]
[1725112544311,2.49827471,59212.0,59211.0,0.009409]
[1725112544726,2.27677495,59212.0,59211.0,0.009409]
[1725112544929,1.92500595,59212.0,59211.0,0.072709]
[1725112545151,1.93900595,59212.0,59211.0,0.072709]
[1725112546424,1.99195407,59212.0,59211.0,0.009409]
[1725112546638,2.16050571,59212.0,59211.0,0.009409]
[1725112546870,2.13400443,59212.0,59211.0,0.009409]
[1725112547545,1.96545279,59212.0,59211.0,0.009409]
[1725112547754,1.96545279,59212.0,59208.0,0.14439343]
[1725112547755,1.520037,59209.0,59208.0,0.14439343]
[1725112547953,2.067037,59209.0,59208.0,0.14439343]
[1725112548349,2.063037,59209.0,59208.0,0.14439343]
[1725112548939,2.077037,59209.0,59208.0,0.14439343]
[1725112549349,2.29853676,59209.0,59208.0,0.14439343]
[1725112550065,0.337792,59208.0,59201.0,0.0633]
[1725112550291,0.506739,59202.0,59201.0,0.0633]
[1725112550476,1.182391,59202.0,59201.0,0.0633]
[1725112550735,1.305391,59202.0,59201.0,0.1451]
[1725112551811,1.33189418,59202.0,59201.0,0.1451]
[1725112552241,1.37431998,59202.0,59201.0,0.1451]
[1725112552454,1.38131998,59202.0,59201.0,0.1451]
[1725112554012,1.33889418,59202.0,59201.0,0.1451]
[1725112554448,1.31589418,59202.0,59201.0,0.1451]
[1725112556803,1.34233912,59202.0,59201.0,0.0818]
[1725112557030,1.36533912,59202.0,59201.0,0.0818]
[1725112557463,1.50187303,59202.0,59201.0,0.0818]
[1725112558409,1.50187303,59202.0,59193.0,0.0207188]
[1725112558410,0.506808,59194.0,59193.0,0.0207188]
[1725112558610,6.635124,59194.0,59193.0,0.0207188]
[1725112558818,7.23896354,59194.0,59193.0,0.0207188]
[1725112559027,7.26196354,59194.0,59193.0,0.0207188]
[1725112559526,7.26196354,59194.0,59191.0,0.0004]
[1725112559527,1.520473,59192.0,59191.0,0.0004]
[1725112559737,6.693473,59192.0,59191.0,0.0004]
[1725112559954,6.92153092,59192.0,59191.0,0.0004]
[1725112560877,6.94804303,59192.0,59191.0,0.0004]
[1725112561106,7.29592603,59192.0,59191.0,0.0004]
[1725112561327,7.37192603,59192.0,59191.0,0.0004]
[1725112561594,7.37192603,59192.0,59191.0,1e-06]
[1725112561804,7.38592603,59192.0,59191.0,1e-06]
[1725112562667,7.33297791,59192.0,59191.0,1e-06]
[1725112563314,6.91909491,59192.0,59191.0,1e-06]
[1725112563523,6.782561,59192.0,59191.0,1e-06]
[1725112564658,6.83550912,59192.0,59191.0,1e-06]
[1725112565350,6.97620912,59192.0,59191.0,1e-06]
[1725112565583,7.31409212,59192.0,59191.0,1e-06]
[1725112566100,7.48264376,59192.0,59191.0,1e-06]
[1725112566783,7.46864376,59192.0,59191.0,1e-06]
[1725112567001,7.44213165,59192.0,59191.0,1e-06]
[1725112567211,7.45613165,59192.0,59191.0,1e-06]
[1725112567811,7.44213165,59192.0,59191.0,1e-06]
[1725112568666,7.45613165,59192.0,59191.0,1e-06]
[1725112569983,7.04224865,59192.0,59191.0,1e-06]
[1725112570214,7.01581376,59192.0,59191.0,1e-06]
[1725112571804,7.02493176,59192.0,59191.0,1e-06]
[1725112572263,7.41576288,59192.0,59191.0,1e-06]
[1725112572482,7.07787988,59192.0,59191.0,1e-06]
[1725112572921,7.05136665,59192.0,59191.0,1e-06]
[1725112573384,6.73216689,59192.0,59191.0,1e-06]
[1725112573624,6.74216689,59192.0,59191.0,1e-06]
[1725112573831,6.79511501,59192.0,59191.0,0.0009019]
[1725112574040,6.81361139,59192.0,59191.0,0.0009019]
[1725112574273,6.96816303,59192.0,59191.0,0.0009019]
[1725112574492,7.32004603,59192.0,59191.0,0.0009019]
[1725112574703,7.00516303,59192.0,59191.0,0.0009019]
[1725112574940,6.95221491,59192.0,59191.0,0.0009019]
[1725112575147,6.93821491,59192.0,59191.0,0.0009019]
[1725112575354,6.95221491,59192.0,59191.0,0.0009019]
[1725112575570,6.78366327,59192.0,59191.0,0.0009019]
[1725112575991,6.12466327,59192.0,59191.0,0.0009019]
[1725112576195,6.08917363,59192.0,59191.0,0.0009019]
[1725112576405,5.36617363,59192.0,59191.0,0.0009019]
[1725112576902,5.41912175,59192.0,59191.0,0.0009019]
[1725112577089,5.58767339,59192.0,59191.0,0.0009019]
[1725112577922,5.53472527,59192.0,59191.0,0.0009019]
[1725112579352,5.53472527,59192.0,59191.0,0.1403019]
[1725112579353,3.34359774,59192.0,59191.0,0.1403019]
[1725112579590,2.13459774,59192.0,59191.0,0.1403019]
[1725112580290,1.86259774,59192.0,59191.0,0.1403019]
[1725112581214,1.47071474,59192.0,59191.0,0.1403019]
[1725112581455,1.33303736,59192.0,59191.0,0.1403019]
[1725112582155,1.47339042,59192.0,59191.0,0.1403019]
[1725112582884,1.44688006,59192.0,59191.0,0.1403019]
[1725112583119,1.46988006,59192.0,59191.0,0.1403019]
[1725112584799,1.46988006,59192.0,59191.0,0.6403019]
[1725112585322,1.46988006,59192.0,59191.0,0.64326336]
[1725112585773,1.329527,59192.0,59191.0,0.64326336]
[1725112586227,1.33303526,59192.0,59191.0,0.64326336]
[1725112586881,1.306527,59192.0,59191.0,0.64326336]
[1725112590040,0.123937,59192.0,59191.0,0.64826336]
[1725112590256,0.123937,59192.0,59191.0,1.2201227]
[1725112590257,0.014819,59192.0,59191.0,1.2201227]
[1725112590497,0.014819,59192.0,59191.0,0.8842337]
[1725112590720,0.014819,59192.0,59191.0,1.2221227]
[1725112591450,0.337815,59204.0,59203.0,0.005]
[1725112591670,0.506722,59204.0,59203.0,0.1444]
[1725112591886,0.506722,59204.0,59203.0,0.14735532]
[1725112592108,0.338595,59211.0,59206.0,0.005]
[1725112592323,0.338595,59211.0,59210.0,0.1444]
[1725112592324,0.845258,59211.0,59210.0,0.1444]
[1725112592985,0.506663,59211.0,59210.0,0.1314]
[1725112593218,0.844438,59211.0,59210.0,0.1314]
[1725112593898,0.87993566,59211.0,59210.0,0.1324]
[1725112594140,0.97993566,59211.0,59210.0,0.1324]
[1725112596935,0.953438,59211.0,59210.0,0.1324]
[1725112598467,0.954257,59211.0,59210.0,0.1324]
[1725112600438,0.98075716,59211.0,59210.0,0.1324]
[1725112601145,0.954257,59211.0,59210.0,0.1324]
[1725112604395,0.98075711,59211.0,59210.0,0.1324]
[1725112606068,1.13905623,59211.0,59210.0,0.0717]
[1725112606349,1.13905623,59211.0,59204.0,0.0859]
[1725112606350,0.506713,59205.0,59204.0,0.0859]
[1725112606601,0.506713,59205.0,59198.0,0.4692]
[1725112606602,0.506739,59202.0,59201.0,0.0661]
[1725112606839,0.506739,59202.0,59200.0,0.0859]
[1725112606840,0.506748,59201.0,59200.0,0.0859]
[1725112607052,1.282412,59201.0,59200.0,0.0859]
[1725112607955,0.168927,59197.0,59196.0,0.0661]
[1725112608184,0.944635,59197.0,59196.0,0.0661]
[1725112608923,0.944635,59197.0,59196.0,0.08271]
[1725112609172,0.944635,59197.0,59196.0,0.0661]
[1725112609895,1.182531,59195.0,59191.0,0.5670019]
[1725112610134,1.282531,59195.0,59191.0,0.5670019]
[1725112611052,1.282531,59195.0,59191.0,0.6529019]
[1725112611261,1.282531,59195.0,59191.0,0.5009019]
[1725112611911,1.282531,59195.0,59194.0,0.10269084]
[1725112613000,0.944665,59195.0,59194.0,0.10269084]
[1725112613220,0.944665,59195.0,59194.0,0.25469084]
[1725112613439,0.944665,59195.0,59194.0,0.252]
[1725112613667,0.0141,59200.0,59194.0,0.252]
[1725112613668,0.0141,59200.0,59194.0,0.25469084]
[1725112613901,0.0141,59200.0,59197.0,0.148]
[1725112613902,0.168924,59198.0,59197.0,0.148]
[1725112614379,0.168924,59198.0,59197.0,0.15068945]
[1725112615027,0.506773,59198.0,59197.0,0.15068945]
[1725112615236,0.606773,59198.0,59197.0,0.15068945]
[1725112615454,0.1,59198.0,59197.0,0.1757584]
[1725112616083,0.268924,59198.0,59197.0,0.15068945]
[1725112617554,0.103,59198.0,59197.0,0.15068945]
[1725112617761,0.171924,59198.0,59197.0,0.15068945]
[1725112617970,0.271924,59198.0,59197.0,0.15068945]
[1725112618189,1.3916393,59198.0,59197.0,0.00268945]
[1725112618415,1.285471,59198.0,59197.0,0.00268945]
[1725112618624,1.285471,59198.0,59194.0,0.1]
[1725112618625,0.844665,59195.0,59194.0,0.1]
[1725112618840,0.944665,59195.0,59194.0,0.1]
[1725112619933,1.282531,59195.0,59194.0,0.1]
[1725112620144,1.4107841,59195.0,59194.0,0.1]
[1725112620353,1.43729153,59195.0,59194.0,0.1]
[1725112620568,1.30903843,59195.0,59194.0,0.1]
[1725112620795,1.282531,59195.0,59194.0,0.1]
[1725112621689,1.433131,59195.0,59194.0,0.1]
[1725112621932,1.793997,59195.0,59194.0,0.1]
[1725112622146,1.861797,59195.0,59194.0,0.1]
[1725112622589,1.861797,59195.0,59194.0,0.1009009]
[1725112622826,2.03034864,59195.0,59194.0,0.1009009]
[1725112623256,2.03534864,59195.0,59194.0,0.1009009]
[1725112623672,2.0568581,59195.0,59194.0,0.1009009]
[1725112624109,2.24230646,59195.0,59194.0,0.1009009]
[1725112624327,2.14020646,59195.0,59194.0,0.1009009]
[1725112626756,2.113697,59195.0,59194.0,0.1009009]
[1725112628464,1.888697,59195.0,59194.0,0.1009009]
[1725112628674,1.782697,59195.0,59194.0,0.1009009]
[1725112628899,2.643697,59195.0,59194.0,0.1009009]
[1725112629331,2.228697,59195.0,59194.0,0.1009009]
[1725112629552,2.093197,59195.0,59194.0,0.1009009]
[1725112631049,2.10900752,59195.0,59194.0,0.1009009]
[1725112631311,2.05000752,59195.0,59194.0,0.1009009]
[1725112633330,2.07651703,59195.0,59194.0,0.1009009]
[1725112633558,0.65411903,59195.0,59194.0,0.11108118]
[1725112633771,0.55411903,59195.0,59194.0,0.1009009]
[1725112633972,0.89198503,59195.0,59194.0,0.08949174]
[1725112634403,0.89198503,59195.0,59194.0,0.0868009]
[1725112634614,0.94352479,59195.0,59194.0,0.0868009]
[1725112635054,1.28139079,59195.0,59194.0,0.0868009]
[1725112635275,1.32985103,59195.0,59194.0,0.08949174]
[1725112635483,0.99198503,59195.0,59194.0,0.0868009]
[1725112636625,1.32985103,59195.0,59194.0,0.0868009]
[1725112636840,1.30334152,59195.0,59194.0,0.0868009]
[1725112640227,1.32984875,59195.0,59194.0,0.0868009]
[1725112641558,1.35284875,59195.0,59194.0,0.0868009]
[1725112644022,1.42064275,59195.0,59194.0,0.0868009]
[1725112644243,1.58919439,59195.0,59194.0,0.0868009]
[1725112644874,1.42064275,59195.0,59194.0,0.0868009]
[1725112646361,4.61064275,59195.0,59194.0,0.0868009]
[1725112646752,4.98560152,59195.0,59194.0,0.0868009]
[1725112647001,4.98060152,59195.0,59194.0,0.0868009]
[1725112647206,4.99242052,59195.0,59194.0,0.0878009]
[1725112647410,5.16097216,59195.0,59194.0,0.0878009]
[1725112647835,5.14997216,59195.0,59194.0,0.0868009]
[1725112648252,5.23027216,59195.0,59194.0,0.0868009]
[1725112648664,5.24127216,59195.0,59194.0,0.0878009]
[1725112648877,5.24627216,59195.0,59194.0,0.01084649]
[1725112649318,1.921956,59192.0,59191.0,0.0009019]
[1725112649530,1.9873818,59192.0,59191.0,0.0009019]
[1725112649733,7.1373818,59192.0,59191.0,0.0009019]
[1725112650161,7.16389396,59192.0,59191.0,0.0009019]
[1725112650599,7.24919396,59192.0,59191.0,0.0009019]
[1725112651223,7.26319396,59192.0,59191.0,0.0019019]
[1725112653586,7.26319396,59192.0,59175.0,0.0824]
[1725112653587,1.52073,59182.0,59167.0,0.64890786]
[1725112653796,6.63803,59182.0,59167.0,0.64890786]
[1725112654002,6.63803,59182.0,59181.0,0.50268467]
[1725112654003,6.73803,59182.0,59181.0,0.50268467]
[1725112654236,6.76103,59182.0,59181.0,0.5]
[1725112654430,6.1505454,59182.0,59181.0,0.5]
[1725112654564,6.1929712,59182.0,59181.0,0.5]
[1725112654770,3.7005454,59182.0,59181.0,0.5]
[1725112655800,3.6235454,59182.0,59181.0,0.5]
[1725112656004,2.8355454,59182.0,59181.0,0.5]
[1725112657752,2.9180454,59182.0,59181.0,0.5]
[1725112658636,2.93516844,59182.0,59181.0,0.5]
[1725112659792,3.10372008,59182.0,59181.0,0.5]
[1725112659987,3.10372008,59182.0,59181.0,0.5009009]
[1725112662438,2.01072008,59182.0,59181.0,0.5009009]
[1725112663060,1.98420468,59182.0,59181.0,0.5009009]
[1725112663276,7.03420468,59182.0,59181.0,0.5009009]
[1725112663488,7.03420468,59182.0,59181.0,0.37311805]
[1725112663489,7.37714468,59182.0,59181.0,0.37311805]
[1725112663716,7.76662444,59182.0,59181.0,0.26247511]
[1725112663933,7.75380707,59182.0,59181.0,0.26247511]
[1725112665015,7.74880707,59182.0,59181.0,0.26247511]
[1725112665468,7.76280707,59182.0,59181.0,0.26247511]
[1725112665900,7.74880707,59182.0,59181.0,0.26247511]
[1725112666365,7.27783228,59182.0,59181.0,0.26247511]
[1725112666581,7.19533228,59182.0,59181.0,0.26247511]
[1725112666789,7.12803228,59182.0,59181.0,0.26247511]
[1725112667711,7.10569943,59182.0,59181.0,0.26247511]
[1725112668130,7.15723919,59182.0,59181.0,0.26247511]
[1725112668364,7.32579083,59182.0,59181.0,0.26247511]
[1725112669861,7.15723919,59182.0,59181.0,0.26247511]
[1725112670066,7.10569943,59182.0,59181.0,0.26247511]
[1725112670909,7.06697704,59182.0,59181.0,0.26247511]
[1725112671530,7.1185168,59182.0,59181.0,0.20710925]
[1725112671770,6.94912844,59182.0,59181.0,0.20710925]
[1725112672014,5.53409704,59182.0,59181.0,0.35060925]
[1725112672278,0.863034,59182.0,59181.0,0.35060925]
[1725112672519,0.18297,59182.0,59181.0,0.35060925]
[1725112672726,0.014,59182.0,59181.0,0.38865237]
[1725112672947,0.168968,59183.0,59182.0,0.1435]
[1725112673157,0.844836,59183.0,59182.0,0.1295]
[1725112673383,0.844836,59183.0,59182.0,0.13212401]
[1725112673599,0.87134723,59183.0,59182.0,0.13212401]
[1725112673807,0.97134723,59183.0,59182.0,0.13212401]
[1725112674009,0.97134723,59183.0,59182.0,0.12712401]
[1725112675730,0.97134723,59183.0,59182.0,0.12812401]
[1725112676778,1.28277,59183.0,59182.0,0.12812401]
[1725112680126,1.67021701,59183.0,59182.0,0.00362401]
[1725112680547,1.67021701,59183.0,59182.0,0.001]
[1725112680962,1.52073,59182.0,59181.0,0.20710925]
[1725112681184,6.86228164,59182.0,59181.0,0.20710925]
[1725112683121,6.93009764,59182.0,59181.0,0.20710925]
[1725112683553,6.93891664,59182.0,59181.0,0.20810925]
[1725112689118,7.27685664,59182.0,59181.0,0.20810925]
[1725112689321,7.34505664,59182.0,59181.0,0.20810925]
[1725112689981,7.3923009,59182.0,59181.0,0.20810925]
[1725112690198,7.49296247,59182.0,59181.0,0.20810925]
[1725112690410,7.3923009,59182.0,59181.0,0.20810925]
[1725112691030,7.34505664,59182.0,59181.0,0.20810925]
[1725112691670,7.3923009,59182.0,59181.0,0.20810925]
[1725112692291,7.51812787,59182.0,59181.0,0.20810925]
[1725112692704,7.52312787,59182.0,59181.0,0.20810925]
[1725112693761,7.3973009,59182.0,59181.0,0.1025637]
[1725112695320,7.3973009,59182.0,59181.0,0.04967929]
[1725112695524,7.35005664,59182.0,59181.0,0.04967929]
[1725112697395,7.33763791,59182.0,59181.0,0.04967929]
[1725112697604,1.863736,59180.0,59171.0,0.509409]
[1725112697823,7.036736,59180.0,59171.0,0.509409]
[1725112699059,7.042736,59180.0,59171.0,0.509409]
[1725112699930,7.036736,59180.0,59171.0,0.509409]
[1725112700406,7.050736,59180.0,59171.0,0.509409]
[1725112700587,7.21928764,59180.0,59171.0,0.509409]
[1725112701072,7.21928764,59180.0,59151.0,0.0004]
[1725112701073,0.01767738,59154.0,59151.0,0.0004]
[1725112701281,0.517166,59152.0,59151.0,0.0004]
[1725112701539,6.94261,59152.0,59151.0,0.0004]
[1725112701755,7.04261,59152.0,59151.0,0.0004]
[1725112701966,7.21116164,59152.0,59151.0,0.0004]
[1725112702186,6.694499,59152.0,59151.0,0.0004]
[1725112702403,4.88391526,59152.0,59151.0,0.0004]
[1725112702616,4.63391526,59152.0,59151.0,0.0004]
[1725112702861,2.24491526,59152.0,59151.0,0.0004]
[1725112703284,1.56733449,59152.0,59151.0,0.0004]
[1725112703498,1.83094668,59152.0,59151.0,0.0004]
[1725112703712,6.53394668,59152.0,59151.0,0.0004]
[1725112703921,3.08944549,59152.0,59151.0,0.0004]
[1725112704146,3.10744549,59152.0,59151.0,0.0004]